Cogmind - Beta 13 @@@ ROGUE MODE // 2024.04.06 @ 20:02:22 Player: Ghosty Result: Destroyed by G-47 Trooper with Particle Gun Performance ------------- Evolutions (2) 1000 Regions Visited (3) 600 Robots Destroyed (24) 120 Value Destroyed (730) 730 Prototype IDs (2) 40 Alien Tech Used (0) 0 Bonus (0) 0 TOTAL SCORE: 2490 Bonus ------- None Cogmind --------- Core Integrity 0/550 Matter 39/300 Energy 68/100 System Corruption 5% Temperature Cool (18) Movement Walking (120) Location -8/Materials Parts ------- > --- POWER (2) -------- (None) > --- PROPULSION (3) --- Aluminum Leg Aluminum Leg Compact Wheel > --- UTILITY (3) ------ (None) > --- WEAPON (3) ------- (None) > --- INVENTORY (5) ---- (None) Peak State ------------ > --- POWER ------------ Light Ion Engine > --- PROPULSION ------- VTOL Module VTOL Module VTOL Module > --- UTILITY ---------- Compact Battery Light Armor Plating Light Armor Plating > --- WEAPON ----------- Enhanced Autogun Hammer > --- INVENTORY -------- Ion Engine Light Armor Plating Medium Armor Plating Insulated Plating Missile Launcher [Rating: 18] Favorites ----------- Power Ion Engine Engine Ion Engine Propulsion VTOL Module Treads Light Treads Leg Aluminum Leg Wheel Compact Wheel Flight Unit VTOL Module Utility Light Armor Plating Device Improved Heat Sink Storage Compact Battery Protection Light Armor Plating Weapon Hammer Energy Gun Medium Laser Energy Cannon Beam Cannon Ballistic Gun Gauss Rifle Launcher Missile Launcher Impact Weapon Hammer Build | -11 -10 -9 -8 ------- Run | Yrd Mat Mat Mat Slots Evolved 4 | . . 2 2 Power 1 | . . . 1 Propulsion 1 | . . 1 . Utility 1 | . . . 1 Weapon 1 | . . 1 . Parts Attached 48 | 6 6 9 27 Power 6 | 2 . . 4 Engine 6 | 2 . . 4 Core . | . . . . Reactor . | . . . . Propulsion 13 | 2 2 4 5 Treads 3 | . 2 1 . Leg 6 | 2 . . 4 Wheel 1 | . . . 1 Hover . | . . . . Flight 3 | . . 3 . Utility 13 | . 3 2 8 Device 2 | . . . 2 Storage 3 | . 1 . 2 Processor . | . . . . Hackware . | . . . . Protection 8 | . 2 2 4 Artifact . | . . . . Weapon 16 | 2 1 3 10 Energy Gun 5 | 2 1 1 1 Energy Cannon 1 | . . . 1 Ballistic Gun 6 | . . 2 4 Ballistic Cannon . | . . . . Launcher 2 | . . . 2 Special Weapon . | . . . . Impact Weapon 2 | . . . 2 Slashing Weapon . | . . . . Piercing Weapon . | . . . . Special Melee Weapon . | . . . . Unidentified Prototypes 2 | . . 1 1 Parts Lost 23 | . . . 23 Power 4 | . . . 4 Propulsion 5 | . . . 5 Utility 8 | . . . 8 Weapon 6 | . . . 6 Highest Loss Streak 15 | . . . 15 To Critical Strikes . | . . . . Average Slot Usage (%) 77 | . 99 93 64 Engine 10 | . 14 11 9 Treads 7 | . 13 26 . Leg 3 | . 14 . 1 Flight 12 | . . 2 19 Storage 9 | . 11 10 9 Protection 14 | . 16 11 14 Energy Gun 10 | . 28 22 . Ballistic Gun 2 | . . 7 1 Impact Weapon 4 | . . . 7 Naked Turns . | . . . . Heaviest Build 94 | 8 92 94 17 Greatest Support 60 | 20 40 60 20 Greatest Overweight (x) 4 | . 4 2 4 Average Overweight (x) . | . 1 1 . Largest Inventory Capacity 25 | 5 25 25 5 Average Capacity 11 | 5 20 23 5 Most Carried 17 | 5 13 17 5 Average Carried 6 | 4 8 12 4 Final Capacity 25 | 5 25 5 5 Final Carried 13 | 5 13 4 . Class Distribution -------------------- 42% | Mutant 40% | Sprinter 14% | Tank 3% | Scavenger-Mutant Dominant Class ---------------- Mutant | -10/Materials Tank | -9/Materials Sprinter | -8/Materials Resources | -11 -10 -9 -8 ----------- Run | Yrd Mat Mat Mat Matter Collected 600 | 180 61 75 284 Remotely . | . . . . Salvage Created 793 | . 78 243 472 Parts 40 | . 11 17 12 Haulers Intercepted . | . . . . Recyclers Shooed . | . . . . Parts Field Recycled . | . . . . Retrieved Matter . | . . . . Parts Self-Destructed . | . . . . Prevented . | . . . . Kills | -11 -10 -9 -8 ------- Run | Yrd Mat Mat Mat Combat Hostiles Destroyed 17 | . 3 5 9 Guns 11 | . 3 4 4 AOE 1 | . . . 1 Classes Destroyed 11 | . 2 3 6 Worker 2 | . 1 1 . Builder 2 | . . . 2 Mechanic 1 | . . . 1 Operator 1 | . . . 1 Watcher 1 | . . . 1 Swarmer 3 | . 3 . . Grunt 10 | . . 3 7 Brawler 1 | . . . 1 Duelist 1 | . . 1 . Sentry 1 | . . 1 . Hunter 1 | . . . 1 Best Kill Streak 7 | . 3 2 7 Combat Bots Only 5 | . 3 2 5 Max Kills in Single Turn 2 | . 1 2 1 Gunslinging . | . . . . Exploded 1 | . . . 1 Melee . | . . . . Uniques/NPCs Destroyed . | . . . . Combat | -11 -10 -9 -8 -------- Run | Yrd Mat Mat Mat Hostile Shots Fired 233 | . 25 42 166 Missed 58 | . 3 12 43 Damage Taken 2502 | . 182 361 1959 Core 670 | . 43 65 562 Absorbed by Shields . | . . . . Core Remaining (%) 88 | 100 82 83 . Volleys Fired 68 | . 9 17 42 Largest 3 | . 2 3 2 Hottest 113 | . 90 113 93 Shots Fired 124 | . 18 45 61 Gun 104 | . 18 45 41 Cannon 12 | . . . 12 Launcher 8 | . . . 8 Special . | . . . . Kinetic 49 | . . 11 38 Thermal 58 | . 9 34 15 Explosive 8 | . . . 8 Electromagnetic 9 | . 9 . . Robot Hit Streak 11 | . 3 7 11 Robot Miss Streak 5 | . 4 5 3 Penetration Max 1 | . . . 1 Secondary Targets 4 | . 2 2 . Max Gunslinging Chain 1 | . 1 1 . Shots Hit Robots 85 | . 8 24 53 Core Hits 35 | . 4 10 21 Critical Kills . | . . . . Critical Parts Destroyed 2 | . . . 2 Critical Strikes 4 | . 1 1 2 Burn 2 | . 1 1 . Smash 2 | . . . 2 Melee Attacks 28 | . . . 28 Impact 28 | . . . 28 Slashing . | . . . . Piercing . | . . . . Sneak Attacks 1 | . . . 1 Combat Hostiles . | . . . . Follow-up Attacks . | . . . . Damage Inflicted 1944 | . 102 338 1504 Guns 1040 | . 102 338 600 Cannons 139 | . . . 139 Explosions 265 | . . . 265 Melee 499 | . . . 499 Ramming 1 | . . . 1 Kinetic 681 | . . 112 569 Thermal 433 | . 37 226 170 Explosive 265 | . . . 265 Electromagnetic 65 | . 65 . . Impact 499 | . . . 499 Slashing . | . . . . Piercing . | . . . . Highest Corruption 5 | . . . 5 Average Corruption 4 | . . . 4 Corruption Purged . | . . . . Corruption Blocked . | . . . . Effects 14 | . . . 14 Message Errors 1 | . . . 1 Matter Fused 3 | . . . 3 Heat Flow Errors 2 | . . . 2 Energy Discharges 4 | . . . 4 Alerts 1 | . . . 1 Weapon Failures 3 | . . . 3 Overload Shots . | . . . . Overflow Damage 102 | . . . 102 Projectiles . | . . . . Explosions . | . . . . Melee 102 | . . . 102 Knockbacks 2 | . . . 2 Impact 2 | . . . 2 Kinetic . | . . . . Secondary . | . . . . Self-Inflicted Damage 43 | . . . 43 Shots 1 | . . . 1 Rammed . | . . . . Targets Rammed 2 | . . . 2 Kicked 2 | . . . 2 Crushed . | . . . . Highest Temperature 416 | . 273 416 301 Average Temperature 116 | . 136 138 90 Received Heat Transfer 1287 | . . 171 1116 Effects 1 | . . 1 . Short Circuit 1 | . . 1 . Siege Activations . | . . . . Robots Corrupted . | . . . . Combat Hostiles . | . . . . Parts Fried 7 | . . . 7 Impact Corruptions 6 | . . . 6 Robots Melted 2 | . . 1 1 Combat Hostiles 2 | . . 1 1 Parts Melted 4 | . 2 1 1 Heat Transferred 1200 | . 185 645 370 Parts Sabotaged . | . . . . Parts Stolen . | . . . . Parts Stripped . | . . . . Power Chain Reactions . | . . . . Alert | -11 -10 -9 -8 ------- Run | Yrd Mat Mat Mat Peak Influence 243 | . 90 150 243 Initial 63 | . . . 63 Average 57 | . 21 81 68 Maximum Alert Level 1 | . . . 1 Low Security (%) 93 | 100 100 100 88 Level 1 6 | . . . 11 Level 2 . | . . . . Level 3 . | . . . . Level 4 . | . . . . Level 5 . | . . . . High Security . | . . . . Max Security . | . . . . Squads Dispatched 4 | . . 1 3 Investigation 2 | . . 1 1 Extermination . | . . . . Reinforcement 2 | . . . 2 Assault . | . . . . Garrison . | . . . . Intercept . | . . . . Searches Triggered . | . . . . Construction Impeded . | . . . . Haulers Reinforced . | . . . . Active Scanning Responses . | . . . . Cargo Convoy Interrupts . | . . . . Stealth | -11 -10 -9 -8 --------- Run | Yrd Mat Mat Mat Distress Signals 5 | . 1 2 2 Communications Jammed . | . . . . Distress Signals . | . . . . Times Spotted 35 | . 6 8 21 Peak Tracking Total 5 | . 3 5 5 Tactical Retreats 1 | . . . 1 Traps | -11 -10 -9 -8 ------- Run | Yrd Mat Mat Mat Traps Triggered 1 | . . . 1 Indirectly . | . . . . Trap Hack Attempts . | . . . . Triggered . | . . . . Disarmed . | . . . . Reprogrammed . | . . . . Reused . | . . . . Traps Extracted . | . . . . Installed . | . . . . Triggered . | . . . . Machines | -11 -10 -9 -8 ---------- Run | Yrd Mat Mat Mat Machines Disabled 2 | . . . 2 Max in Single Turn 1 | . . . 1 Machines Repaired . | . . . . Machines Dismantled . | . . . . Machines Sabotaged . | . . . . Overloaded Fab Kills . | . . . . Hacking | -11 -10 -9 -8 --------- Run | Yrd Mat Mat Mat Machines Accessed 1 | . . 1 . Terminals 1 | . . 1 . Fabricators . | . . . . Repair Stations . | . . . . Recycling Units . | . . . . Scanalyzers . | . . . . Garrison Access . | . . . . Total Hacks 3 | . . 3 . Successful 2 | . . 2 . Failed 1 | . . 1 . Catastrophic . | . . . . Database Lockouts . | . . . . Manual . | . . . . Terminals 3 | . . 3 . Fabricators . | . . . . Repair Stations . | . . . . Recycling Units . | . . . . Scanalyzers . | . . . . Garrison Access . | . . . . Terminal Hacks 2 | . . 2 . Record 2 | . . 2 . Fabricator Hacks . | . . . . Repair Station Hacks . | . . . . Recycling Unit Hacks . | . . . . Scanalyzer . | . . . . Garrison Access Hacks . | . . . . Unauthorized Hacks . | . . . . Terminals . | . . . . Fabricators . | . . . . Repair Stations . | . . . . Recycling Units . | . . . . Scanalyzers . | . . . . Garrison Access . | . . . . Data Cores Recovered . | . . . . Used . | . . . . Hacking Detections 1 | . . 1 . Full Trace Events 1 | . . 1 . Feedback Events . | . . . . Feedback Blocked . | . . . . Robot Schematics Acquired . | . . . . Robots Built . | . . . . Authchips . | . . . . Time . | . . . . Total Robot Build Rating . | . . . . Part Schematics Acquired . | . . . . Parts Built . | . . . . Authchips . | . . . . Time . | . . . . Total Part Build Rating . | . . . . Parts Repaired . | . . . . Time . | . . . . Parts Recycled . | . . . . Recycled Matter . | . . . . Retrieved Matter . | . . . . Retrieved Components . | . . . . Parts Scanalyzed . | . . . . Part Schematics Acquired . | . . . . Parts Damaged . | . . . . Bothacking | -11 -10 -9 -8 ------------ Run | Yrd Mat Mat Mat Used RIF Installer . | . . . . Robots Hacked . | . . . . Non-combat . | . . . . Combat . | . . . . Robot Hacks Applied . | . . . . Relay Couplers Released . | . . . . Fabnet Peak Effective % . | . . . . Robots Rewired . | . . . . Allies Hacked . | . . . . Hacks Repelled . | . . . . Allies | -11 -10 -9 -8 -------- Run | Yrd Mat Mat Mat Total Allies . | . . . . Largest Group . | . . . . Highest-Rated Group . | . . . . Highest-Rated Ally . | . . . . Total Orders . | . . . . Ally Attacks . | . . . . Total Damage . | . . . . Kills . | . . . . Allies Corrupted . | . . . . Allies Melted . | . . . . Intel | -11 -10 -9 -8 ------- Run | Yrd Mat Mat Mat Robot Analysis Total . | . . . . Derelict Logs Recovered . | . . . . Drone Launches . | . . . . Drone Recoveries . | . . . . Exploration | -11 -10 -9 -8 ------------- Run | Yrd Mat Mat Mat Turns Passed 2224 | 129 451 392 1252 Spaces Moved 1126 | 111 167 165 683 Core 48 | 28 . . 20 Treads 157 | . 59 98 . Legs 239 | 83 108 . 48 Wheels 3 | . . . 3 Hover . | . . . . Flight 679 | . . 67 612 Fastest Speed 29 | 50 120 29 29 Average Speed 110 | 102 244 193 58 Slowest Speed 400 | 120 400 320 275 Overloaded Moves . | . . . . Propulsion Burnouts . | . . . . Robots Hopped 2 | . . . 2 Cave-ins Triggered . | . . . . Exploration Rate (%) 17 | 4 26 19 21 Regions Visited 3 Branch Regions . Pre-discovered Areas . | . . . . Known Exits Taken . | . . . . Unknown Exits Taken 3 | 1 1 1 . Scrap Searched . | . . . . Spaces Dug 2 | . . . 2 Terrain Destroyed 61 | . . . 61 Melee 2 | . . . 2 Projectile . | . . . . AOE 59 | . . . 59 Terrain Rammed . | . . . . Walls Destroyed . | . . . . Machines Disabled . | . . . . Actions | -11 -10 -9 -8 --------- Run | Yrd Mat Mat Mat Total 1945 | 124 191 201 1429 Wait 623 | . . . 623 Move 1120 | 110 166 164 680 Hop 1 | . . . 1 Pick Up 40 | 7 9 7 17 Fast Attach 9 | 4 2 . 3 Attach 28 | 1 . 4 23 Detach 5 | . . . 5 Swap 11 | 1 4 5 1 Drop 10 | 1 1 4 4 Fire 68 | . 9 17 42 Melee 28 | . . . 28 Ram . | . . . . Kick 2 | . . . 2 Crush . | . . . . Escape Stasis . | . . . . Rewire . | . . . . Trap . | . . . . Miscellaneous . | . . . . Route ------- -11/Scrapyard -10/Materials -9/Materials -8/Materials History --------- Turn | Location | Event 20 | -11/Scrapyard | Discovered new exit (range 14) 130 | -11/Scrapyard | Entered Materials 306 | -10/Materials | Build established: Mutant 522 | -10/Materials | Discovered new exit (range 7) 581 | -10/Materials | Entered another Materials area 581 | -9/Materials | Evolved 2 slots: Propulsion x1, Weapon x1 966 | -9/Materials | Discovered new exit (range 7) 973 | -9/Materials | Entered another Materials area 973 | -8/Materials | Evolved 2 slots: Power x1, Utility x1 1226 | -8/Materials | Build established: Sprinter 1868 | -8/Materials | Lost 4 parts (1p2n1u) 2007 | -8/Materials | Core integrity fell below 50% 2212 | -8/Materials | Core integrity fell below 20% 2225 | -8/Materials | Destroyed by G-47 Trooper with Particle Gun Last Messages --------------- 02201_ Acquired Tractor Beam. 02201_ Com. Matter Pod destroyed. 02204_ Hammer destroyed. 02205_ System corrupted: Heat flow error (+152). 02205_ Acquired Lgt. Ion Engine. 02206_ Lgt. Ion Engine destroyed. 02207_ Com. Battery destroyed. 02207_ Critical hit (Burn: +37). 02207_ Acquired Com. Wheel. 02208_ Tractor Beam destroyed. 02208_ R-06 Scavenger collects Com. Wheel. 02213_ Enh. Autogun destroyed. 02214_ Imp. Heat Sink destroyed. 02216_ Critical hit (Burn: +37). 02217_ G-47 Trooper destroyed. 02218_ Acquired Aluminum Leg. 02219_ R-06 Scavenger collects Particle Gun. 02221_ Insulated Plating destroyed. 02221_ Acquired Aluminum Leg. 02223_ Kicked G-47 Trooper out of the way. Map ----- +----------------------------------------------------+ | ?????????????????????????????????????????????????? | | ?????????????????????????????????????????????????? | | ?????????????????????????????????????????????????? | | ?????????????????????????????????????????????????? | | ?????????????????????????????????????????????????? | | ?????????????????????????????????????????????????? | | ?????????????????????????????????????????????????? | | ?????????????????????????????????????????????????? | | ?????????????????????????????????????????????????? | | ?????????????????????????????????????????????????? | | ?????????????????????????????????????????????????? | | ?????????????????????????????????????????????????? | | ?????????????????????####???########?????????????? | | ?????????????????# ?? #?????????????? | | ?????????????????# ] #?????????????? | | ?????????????????# """ ??????????????? | | ????????????? #??# "Y" ??????????????? | | ????????????? ## " " a #?????????????? | | ??????????????? u """ """ # ????????????? | | ?????????????????# "%% """ + ??????????? | | ?????????????????# ""% """ #?????????????? | | ?????????????????# % #?????????????? | | ?????????????????# r ! #?????????????? | | ?????????????????# %%#######??????????????? | | ????????????????+ #????????????????????? | | ????????????????##+######@g #????????????????????? | | ????????????????????????# gg#????????????????????? | | ????????????????????????# % #????????????????????? | | ????????????????????????# #????????????????????? | | ????????????????????????# #????????????????????? | | ?????????????????######## #????????????????????? | | ?????????????????# # #????????????????????? | | ?????????????????# """ # #????????????????????? | | ?????????????????# """ /u ##???????????????????? | | ?????????????????# """ # ####?????????????????? | | ?????????????????# # # #?????????????????? | | ?????????????????# ? # # #?????????????????? | | ?????????????????#???## # # #######???????????? | | ???????#############?## # # #???????????? | | ???????# # #### # # """ #???????????? | | ???????# ######## # " " #???????????? | | ???????# """"""" # # #???????????? | | ???????# """"""" + + #???????????? | | ???????# """"""" # ] # """ #???????????? | | ???????# """"""" # ]] # """ #???????????? | | ???????# """"""" # # """ #???????????? | | ???????# # # #???????????? | | ???????########### ##########???????????? | | ??????????????# # #????????????????????? | | ??????????????## # #????????????????????? | +----------------------------------------------------+ Best States ------------- Heat Dissipation 45 Energy Generation 15 Energy Capacity 475 Matter Stores 268 Matter Capacity 450 Sight Range 16 Terrain Scan Density 10 Armor Coverage 525 Resistance: EM 15 Evasion (%) 64 Recoil Reduction 3 Item Schematics ----------------- None Robot Schematics ------------------ None Fabricated ------------ Nothing Alien Tech Used ----------------- None Achievements -------------- It's Just You Challenges ------------ None Game ------ Seed HardenedResetCapacitor Manual? 0 Play Time 00:21:41 Cumulative 3.0 hours Start 2024.04.06 @ 19:42:09 End 2024.04.06 @ 20:02:22 Sessions 1 Manual Loads 0 Difficulty Rogue Special Mode None Game No. 6 Rogue 5 Adventurer 0 Explorer 1 Win Type - Total 0 Types 0/0/0/0/0/0/0/0/0 Lore% 1 Gallery% 7 Achievement% 7 Wizard Run 0 Options --------- Layout 0 ASCII 0 Keyboard 0 Movement Mouse Keybinds 0 Fullscreen 2 Font 24/Crisp Map View 38x25 Zoom Use 100% Tactical HUD 1 Map Filters NONE Filters NONE Steam 1 RUN: 7e297bee-6fe3-4e10-9969-91fb027305c3